[Event "Titled Tuesday Blitz November 14 Early 2023"]
[White "Henriquez Villagra, Cristobal"]
[Black "Duda, Jan-Krzysztof"]
[WhiteFideId "3409350"]
[BlackFideId "1170546"]
[WhiteElo "2889"]
[BlackElo "3103"]
[Result "0-1"]
[Round "4"]
[TimeControl "180+1"]
[Date "2023.11.14"]
[WhiteClock "0:00:07"]
[BlackClock "0:00:04"]
[Board "5"]

1. e4 {[%clk 0:03:00]}  e5 {[%clk 0:02:58]} 2. Nf3 {[%clk 0:03:00]}  Nc6 {[%clk 0:02:59]} 3. Be2 {[%clk 0:02:58]}  Nf6 {[%clk 0:02:55]} 4. d3 {[%clk 0:02:58]}  d5 {[%clk 0:02:54]} 5. Nbd2 {[%clk 0:02:59]}  Bc5 {[%clk 0:02:47]} 6. O-O {[%clk 0:02:58]}  a5 {[%clk 0:02:45]} 7. c3 {[%clk 0:02:48]}  O-O {[%clk 0:02:44]} 8. h3 {[%clk 0:02:49]}  Re8 {[%clk 0:02:42]} 9. Re1 {[%clk 0:02:49]}  h6 {[%clk 0:02:39]} 10. Bf1 {[%clk 0:02:49]}  d4 {[%clk 0:02:06]} 11. Nb3 {[%clk 0:02:36]}  Bb6 {[%clk 0:02:06]} 12. cxd4 {[%clk 0:02:36]}  a4 {[%clk 0:02:06]} 13. d5 {[%clk 0:02:18]}  axb3 {[%clk 0:02:01]} 14. dxc6 {[%clk 0:02:17]}  bxa2 {[%clk 0:01:50]} 15. cxb7 {[%clk 0:02:17]}  Bxb7 {[%clk 0:01:51]} 16. Qb3 {[%clk 0:02:15]}  Qb8 {[%clk 0:01:51]} 17. Rxa2 {[%clk 0:01:56]}  Bxe4 {[%clk 0:01:50]} 18. Rxa8 {[%clk 0:01:13]}  Bxa8 {[%clk 0:01:51]} 19. Nd2 {[%clk 0:01:12]}  e4 {[%clk 0:01:17]} 20. dxe4 {[%clk 0:01:00]}  Rxe4 {[%clk 0:01:03]} 21. Qd1 {[%clk 0:00:24]}  Bxf2+ {[%clk 0:01:00]} 22. Kxf2 {[%clk 0:00:24]}  Qb6+ {[%clk 0:00:59]} 23. Kg3 {[%clk 0:00:20]}  Qd6+ {[%clk 0:00:59]} 24. Kf2 {[%clk 0:00:19]}  Qc5+ {[%clk 0:00:23]} 25. Kg3 {[%clk 0:00:18]}  Nh5+ {[%clk 0:00:23]} 26. Qxh5 {[%clk 0:00:18]}  Qxh5 {[%clk 0:00:24]} 27. Nxe4 {[%clk 0:00:12]}  Qg6+ {[%clk 0:00:25]} 28. Kf4 {[%clk 0:00:08]}  Bxe4 {[%clk 0:00:23]} 29. Rxe4 {[%clk 0:00:07]}  Qg5+ {[%clk 0:00:16]} 30. Kf3 {[%clk 0:00:05]}  Qxc1 {[%clk 0:00:17]} 31. Re8+ {[%clk 0:00:05]}  Kh7 {[%clk 0:00:17]} 32. Bd3+ {[%clk 0:00:06]}  g6 {[%clk 0:00:18]} 33. Re2 {[%clk 0:00:06]}  Kg7 {[%clk 0:00:14]} 34. Rc2 {[%clk 0:00:03]}  Qd1+ {[%clk 0:00:14]} 35. Ke3 {[%clk 0:00:04]}  Qe1+ {[%clk 0:00:14]} 36. Re2 {[%clk 0:00:03]}  Qb4 {[%clk 0:00:14]} 37. Rc2 {[%clk 0:00:03]}  h5 {[%clk 0:00:13]} 38. Bc4 {[%clk 0:00:02]}  Qc5+ {[%clk 0:00:11]} 39. Kd3 {[%clk 0:00:03]}  h4 {[%clk 0:00:10]} 40. b3 {[%clk 0:00:04]}  Qd6+ {[%clk 0:00:08]} 41. Kc3 {[%clk 0:00:04]}  c5 {[%clk 0:00:09]} 42. Re2 {[%clk 0:00:05]}  Qd4+ {[%clk 0:00:08]} 43. Kc2 {[%clk 0:00:06]}  f5 {[%clk 0:00:09]} 44. Rd2 {[%clk 0:00:07]}  Qf4 {[%clk 0:00:09]} 45. Bd5 {[%clk 0:00:07]}  Kf6 {[%clk 0:00:09]} 46. Bf3 {[%clk 0:00:07]}  Kg5 {[%clk 0:00:09]} 47. Bd5 {[%clk 0:00:08]}  Qe3 {[%clk 0:00:09]} 48. Bc4 {[%clk 0:00:08]}  Kf4 {[%clk 0:00:09]} 49. Rd3 {[%clk 0:00:07]}  Qe1 {[%clk 0:00:06]} 50. Rd1 {[%clk 0:00:07]}  Qa5 {[%clk 0:00:03]} 51. Rf1+ {[%clk 0:00:07]}  Kg3 {[%clk 0:00:03]} 52. Bd5 {[%clk 0:00:04]}  Qa2+ {[%clk 0:00:03]} 53. Kc3 {[%clk 0:00:05]}  Qa5+ {[%clk 0:00:03]} 54. Kc2 {[%clk 0:00:05]}  Qa2+ {[%clk 0:00:02]} 55. Kc3 {[%clk 0:00:06]}  Qe2 {[%clk 0:00:03]} 56. Rf3+ {[%clk 0:00:06]}  Kh2 {[%clk 0:00:03]} 57. Rd3 {[%clk 0:00:06]}  Qf2 {[%clk 0:00:03]} 58. Kc4 {[%clk 0:00:07]}  Qc2+ {[%clk 0:00:03]} 59. Rc3 {[%clk 0:00:07]}  Qd2 {[%clk 0:00:03]} 60. Rd3 {[%clk 0:00:07]}  Qb4# {[%clk 0:00:04]} 0-1


[Site "https://www.chess.com"]

[Event "Titled Tuesday Blitz November 14 Early 2023"]
[White "Bachmann, Axel"]
[Black "Firouzja, Alireza"]
[WhiteFideId "3700488"]
[BlackFideId "12573981"]
[WhiteElo "2885"]
[BlackElo "3080"]
[Result "0-1"]
[Round "4"]
[TimeControl "180+1"]
[Date "2023.11.14"]
[WhiteClock "0:00:16"]
[BlackClock "0:00:04"]
[Board "6"]

1. Nf3 {[%clk 0:02:59]}  c5 {[%clk 0:02:57]} 2. c4 {[%clk 0:02:58]}  g6 {[%clk 0:02:57]} 3. d4 {[%clk 0:02:57]}  cxd4 {[%clk 0:02:57]} 4. Nxd4 {[%clk 0:02:58]}  Bg7 {[%clk 0:02:56]} 5. e4 {[%clk 0:02:58]}  Nc6 {[%clk 0:02:57]} 6. Be3 {[%clk 0:02:59]}  Nf6 {[%clk 0:02:52]} 7. Nc3 {[%clk 0:02:58]}  O-O {[%clk 0:02:52]} 8. Be2 {[%clk 0:02:58]}  d6 {[%clk 0:02:52]} 9. O-O {[%clk 0:02:53]}  Bd7 {[%clk 0:02:50]} 10. h3 {[%clk 0:02:51]}  a6 {[%clk 0:02:48]} 11. Rc1 {[%clk 0:02:48]}  Rb8 {[%clk 0:02:34]} 12. Nf3 {[%clk 0:02:29]}  b5 {[%clk 0:02:17]} 13. cxb5 {[%clk 0:02:26]}  axb5 {[%clk 0:02:17]} 14. e5 {[%clk 0:02:24]}  Nxe5 {[%clk 0:02:13]} 15. Nxe5 {[%clk 0:02:24]}  dxe5 {[%clk 0:02:14]} 16. b4 {[%clk 0:02:22]}  Qe8 {[%clk 0:02:02]} 17. Bc5 {[%clk 0:02:21]}  Bh6 {[%clk 0:01:52]} 18. Rc2 {[%clk 0:02:07]}  Bf5 {[%clk 0:01:48]} 19. Rb2 {[%clk 0:02:02]}  Ne4 {[%clk 0:01:47]} 20. Nd5 {[%clk 0:01:57]}  Nxc5 {[%clk 0:01:45]} 21. bxc5 {[%clk 0:01:58]}  Bg7 {[%clk 0:01:40]} 22. c6 {[%clk 0:01:54]}  e4 {[%clk 0:00:44]} 23. Rxb5 {[%clk 0:01:50]}  Rxb5 {[%clk 0:00:40]} 24. Bxb5 {[%clk 0:01:50]}  Qd8 {[%clk 0:00:40]} 25. Ne3 {[%clk 0:01:29]}  Qb6 {[%clk 0:00:35]} 26. a4 {[%clk 0:01:18]}  Bd4 {[%clk 0:00:33]} 27. Nd5 {[%clk 0:01:17]}  Qc5 {[%clk 0:00:32]} 28. Nxe7+ {[%clk 0:01:14]}  Kg7 {[%clk 0:00:31]} 29. Nxf5+ {[%clk 0:01:10]}  gxf5 {[%clk 0:00:31]} 30. Qc1 {[%clk 0:01:02]}  Bxf2+ {[%clk 0:00:24]} 31. Kh1 {[%clk 0:01:02]}  Qxc1 {[%clk 0:00:22]} 32. Rxc1 {[%clk 0:01:03]}  Rc8 {[%clk 0:00:22]} 33. Ba6 {[%clk 0:01:00]}  Rc7 {[%clk 0:00:20]} 34. Bb7 {[%clk 0:01:01]}  Kf6 {[%clk 0:00:13]} 35. a5 {[%clk 0:00:58]}  Ke5 {[%clk 0:00:12]} 36. a6 {[%clk 0:00:57]}  f4 {[%clk 0:00:11]} 37. Ra1 {[%clk 0:00:52]}  Ba7 {[%clk 0:00:10]} 38. Ra5+ {[%clk 0:00:50]}  Kd6 {[%clk 0:00:10]} 39. Ra4 {[%clk 0:00:46]}  e3 {[%clk 0:00:10]} 40. Rxf4 {[%clk 0:00:42]}  e2 {[%clk 0:00:06]} 41. Re4 {[%clk 0:00:41]}  Re7 {[%clk 0:00:06]} 42. c7 {[%clk 0:00:16]}  Rxe4 {[%clk 0:00:04]} 0-1


[Site "https://www.chess.com"]

[Event "Titled Tuesday Blitz November 14 Early 2023"]
[White "Madaminov, Mukhiddin"]
[Black "Le, Tuan Minh"]
[WhiteFideId "14210703"]
[BlackFideId "12401153"]
[WhiteElo "2872"]
[BlackElo "3065"]
[Result "1/2-1/2"]
[Round "4"]
[TimeControl "180+1"]
[Date "2023.11.14"]
[WhiteClock "0:00:09"]
[BlackClock "0:00:05"]
[Board "7"]

1. e4 {[%clk 0:03:00]}  e5 {[%clk 0:02:57]} 2. Nf3 {[%clk 0:03:00]}  Nc6 {[%clk 0:02:58]} 3. Bb5 {[%clk 0:03:01]}  a6 {[%clk 0:02:57]} 4. Ba4 {[%clk 0:03:01]}  Bc5 {[%clk 0:02:58]} 5. c3 {[%clk 0:03:02]}  Nge7 {[%clk 0:02:58]} 6. d4 {[%clk 0:03:00]}  exd4 {[%clk 0:02:58]} 7. cxd4 {[%clk 0:03:00]}  Bb4+ {[%clk 0:02:59]} 8. Nc3 {[%clk 0:03:00]}  d5 {[%clk 0:02:56]} 9. O-O {[%clk 0:03:01]}  Bxc3 {[%clk 0:02:32]} 10. bxc3 {[%clk 0:03:01]}  O-O {[%clk 0:02:32]} 11. exd5 {[%clk 0:02:49]}  Nxd5 {[%clk 0:02:31]} 12. Qd3 {[%clk 0:02:47]}  Nce7 {[%clk 0:02:19]} 13. Ba3 {[%clk 0:02:31]}  Bf5 {[%clk 0:02:14]} 14. Qd2 {[%clk 0:02:31]}  b5 {[%clk 0:02:00]} 15. Bb3 {[%clk 0:02:31]}  Re8 {[%clk 0:02:00]} 16. Rfe1 {[%clk 0:02:28]}  c6 {[%clk 0:01:55]} 17. Bc5 {[%clk 0:02:26]}  Ng6 {[%clk 0:01:46]} 18. Rxe8+ {[%clk 0:02:24]}  Qxe8 {[%clk 0:01:47]} 19. Re1 {[%clk 0:02:25]}  Qd7 {[%clk 0:01:47]} 20. Ne5 {[%clk 0:02:21]}  Nxe5 {[%clk 0:01:46]} 21. Rxe5 {[%clk 0:02:05]}  Be6 {[%clk 0:01:44]} 22. h4 {[%clk 0:02:02]}  Re8 {[%clk 0:01:42]} 23. h5 {[%clk 0:01:57]}  h6 {[%clk 0:01:40]} 24. Bc2 {[%clk 0:01:20]}  Nf6 {[%clk 0:01:21]} 25. a3 {[%clk 0:00:51]}  Bd5 {[%clk 0:00:51]} 26. Bf5 {[%clk 0:00:39]}  Be6 {[%clk 0:00:51]} 27. Bc2 {[%clk 0:00:33]}  Bd5 {[%clk 0:00:51]} 28. Qf4 {[%clk 0:00:29]}  a5 {[%clk 0:00:20]} 29. f3 {[%clk 0:00:24]}  a4 {[%clk 0:00:20]} 30. Kf2 {[%clk 0:00:24]}  Bc4 {[%clk 0:00:17]} 31. Bf5 {[%clk 0:00:23]}  Qd8 {[%clk 0:00:18]} 32. Bc2 {[%clk 0:00:15]}  Bb3 {[%clk 0:00:18]} 33. Bd3 {[%clk 0:00:14]}  Re6 {[%clk 0:00:15]} 34. Rxe6 {[%clk 0:00:11]}  Bxe6 {[%clk 0:00:16]} 35. Qe5 {[%clk 0:00:12]}  Nd7 {[%clk 0:00:15]} 36. Qe4 {[%clk 0:00:11]}  Nxc5 {[%clk 0:00:13]} 37. Qh7+ {[%clk 0:00:04]}  Kf8 {[%clk 0:00:14]} 38. Qh8+ {[%clk 0:00:05]}  Ke7 {[%clk 0:00:15]} 39. Qxd8+ {[%clk 0:00:06]}  Kxd8 {[%clk 0:00:15]} 40. dxc5 {[%clk 0:00:07]}  Bd5 {[%clk 0:00:15]} 41. g4 {[%clk 0:00:07]}  Ke7 {[%clk 0:00:15]} 42. Kg3 {[%clk 0:00:07]}  Kf6 {[%clk 0:00:13]} 43. f4 {[%clk 0:00:07]}  g5 {[%clk 0:00:11]} 44. Bf5 {[%clk 0:00:02]}  Bh1 {[%clk 0:00:07]} 45. Bd3 {[%clk 0:00:02]}  Bd5 {[%clk 0:00:08]} 46. Bc2 {[%clk 0:00:03]}  Bh1 {[%clk 0:00:05]} 47. Bb1 {[%clk 0:00:03]}  Bd5 {[%clk 0:00:05]} 48. Bd3 {[%clk 0:00:03]}  Bh1 {[%clk 0:00:06]} 49. c4 {[%clk 0:00:03]}  b4 {[%clk 0:00:05]} 50. axb4 {[%clk 0:00:04]}  a3 {[%clk 0:00:06]} 51. Bb1 {[%clk 0:00:05]}  Be4 {[%clk 0:00:06]} 52. Ba2 {[%clk 0:00:06]}  Bd3 {[%clk 0:00:06]} 53. Kf3 {[%clk 0:00:04]}  Bf1 {[%clk 0:00:07]} 54. Ke3 {[%clk 0:00:05]}  gxf4+ {[%clk 0:00:06]} 55. Kxf4 {[%clk 0:00:05]}  Be2 {[%clk 0:00:07]} 56. Bb3 {[%clk 0:00:04]}  Bd1 {[%clk 0:00:02]} 57. Ba2 {[%clk 0:00:04]}  Be2 {[%clk 0:00:03]} 58. Bb3 {[%clk 0:00:05]}  Bd3 {[%clk 0:00:03]} 59. Ke3 {[%clk 0:00:04]}  Bf1 {[%clk 0:00:03]} 60. Kf2 {[%clk 0:00:04]}  Bd3 {[%clk 0:00:04]} 61. Ke3 {[%clk 0:00:05]}  Bb1 {[%clk 0:00:05]} 62. b5 {[%clk 0:00:04]}  Ke7 {[%clk 0:00:05]} 63. b6 {[%clk 0:00:03]}  Kd8 {[%clk 0:00:04]} 64. g5 {[%clk 0:00:02]}  hxg5 {[%clk 0:00:04]} 65. h6 {[%clk 0:00:03]}  Bh7 {[%clk 0:00:04]} 66. Kf3 {[%clk 0:00:03]}  f5 {[%clk 0:00:04]} 67. Kg3 {[%clk 0:00:03]}  Kd7 {[%clk 0:00:04]} 68. Ba2 {[%clk 0:00:03]}  Bg6 {[%clk 0:00:04]} 69. Kf3 {[%clk 0:00:04]}  Kc8 {[%clk 0:00:04]} 70. Kg3 {[%clk 0:00:04]}  Kb7 {[%clk 0:00:05]} 71. Kf3 {[%clk 0:00:05]}  f4 {[%clk 0:00:03]} 72. Kg4 {[%clk 0:00:05]}  Be4 {[%clk 0:00:03]} 73. Bb3 {[%clk 0:00:04]}  Bd3 {[%clk 0:00:03]} 74. Kf3 {[%clk 0:00:04]}  Bf5 {[%clk 0:00:03]} 75. Ba2 {[%clk 0:00:04]}  Bc2 {[%clk 0:00:04]} 76. Kg4 {[%clk 0:00:04]}  Ka6 {[%clk 0:00:04]} 77. Kf3 {[%clk 0:00:01]}  Bf5 {[%clk 0:00:05]} 78. Bb3 {[%clk 0:00:02]}  Kb7 {[%clk 0:00:05]} 79. Ba2 {[%clk 0:00:02]}  Kc8 {[%clk 0:00:05]} 80. Bb3 {[%clk 0:00:03]}  Bg6 {[%clk 0:00:05]} 81. Kg4 {[%clk 0:00:03]}  Bd3 {[%clk 0:00:06]} 82. Ba2 {[%clk 0:00:03]}  Bc2 {[%clk 0:00:06]} 83. Kf3 {[%clk 0:00:04]}  Kb8 {[%clk 0:00:05]} 84. Kg4 {[%clk 0:00:04]}  Be4 {[%clk 0:00:04]} 85. Bb3 {[%clk 0:00:04]}  f3 {[%clk 0:00:05]} 86. Kg3 {[%clk 0:00:05]}  g4 {[%clk 0:00:05]} 87. Ba2 {[%clk 0:00:05]}  Kb7 {[%clk 0:00:05]} 88. Kf2 {[%clk 0:00:06]}  Bd3 {[%clk 0:00:06]} 89. Kg3 {[%clk 0:00:06]}  Bc2 {[%clk 0:00:07]} 90. Kf2 {[%clk 0:00:07]}  Be4 {[%clk 0:00:06]} 91. Kg3 {[%clk 0:00:07]}  Bh7 {[%clk 0:00:06]} 92. Kf2 {[%clk 0:00:08]}  Bg6 {[%clk 0:00:07]} 93. Kg3 {[%clk 0:00:08]}  Bf5 {[%clk 0:00:07]} 94. Kf2 {[%clk 0:00:09]}  Be4 {[%clk 0:00:05]} 95. Kg3 {[%clk 0:00:09]} 1/2-1/2


[Site "https://www.chess.com"]

[Event "Titled Tuesday Blitz November 14 Early 2023"]
[White "Kozak, Antoni"]
[Black "Lazavik, Denis"]
[WhiteFideId "21832030"]
[BlackFideId "13515110"]
[WhiteElo "2835"]
[BlackElo "3058"]
[Result "0-1"]
[Round "4"]
[TimeControl "180+1"]
[Date "2023.11.14"]
[WhiteClock "0:00:00"]
[BlackClock "0:00:21"]
[Board "8"]

1. e4 {[%clk 0:03:00]}  c5 {[%clk 0:02:59]} 2. Nf3 {[%clk 0:03:01]}  e6 {[%clk 0:03:00]} 3. Nc3 {[%clk 0:03:00]}  Nc6 {[%clk 0:03:00]} 4. Bb5 {[%clk 0:02:59]}  Nd4 {[%clk 0:03:00]} 5. O-O {[%clk 0:02:57]}  a6 {[%clk 0:02:59]} 6. Bd3 {[%clk 0:02:55]}  Nc6 {[%clk 0:03:00]} 7. Re1 {[%clk 0:02:53]}  g5 {[%clk 0:02:58]} 8. Kh1 {[%clk 0:02:36]}  g4 {[%clk 0:02:53]} 9. Ng1 {[%clk 0:02:36]}  h5 {[%clk 0:02:53]} 10. b3 {[%clk 0:02:27]}  Bg7 {[%clk 0:02:51]} 11. Bb2 {[%clk 0:02:27]}  d6 {[%clk 0:02:52]} 12. Qc1 {[%clk 0:02:12]}  Nge7 {[%clk 0:02:45]} 13. Nce2 {[%clk 0:02:11]}  Ne5 {[%clk 0:02:43]} 14. Nf4 {[%clk 0:02:11]}  N7c6 {[%clk 0:02:41]} 15. Bf1 {[%clk 0:02:10]}  h4 {[%clk 0:02:38]} 16. c3 {[%clk 0:02:07]}  g3 {[%clk 0:02:35]} 17. f3 {[%clk 0:02:05]}  gxh2 {[%clk 0:02:29]} 18. Ngh3 {[%clk 0:02:04]}  Ng6 {[%clk 0:01:56]} 19. Nxg6 {[%clk 0:01:54]}  fxg6 {[%clk 0:01:56]} 20. d4 {[%clk 0:01:54]}  cxd4 {[%clk 0:01:55]} 21. cxd4 {[%clk 0:01:54]}  Nxd4 {[%clk 0:01:56]} 22. Qd1 {[%clk 0:01:32]}  e5 {[%clk 0:01:54]} 23. Nf4 {[%clk 0:01:19]}  Qg5 {[%clk 0:01:43]} 24. Bxd4 {[%clk 0:01:08]}  exd4 {[%clk 0:01:40]} 25. Nd5 {[%clk 0:01:09]}  O-O {[%clk 0:01:38]} 26. f4 {[%clk 0:00:54]}  Qg3 {[%clk 0:01:36]} 27. Bc4 {[%clk 0:00:37]}  Kh7 {[%clk 0:01:35]} 28. Rf1 {[%clk 0:00:21]}  Bg4 {[%clk 0:01:33]} 29. Qd3 {[%clk 0:00:18]}  b5 {[%clk 0:01:28]} 30. Qxg3 {[%clk 0:00:17]}  hxg3 {[%clk 0:01:29]} 31. Bd3 {[%clk 0:00:17]}  Rac8 {[%clk 0:01:25]} 32. Rac1 {[%clk 0:00:16]}  Be6 {[%clk 0:01:09]} 33. Rxc8 {[%clk 0:00:16]}  Rxc8 {[%clk 0:01:04]} 34. f5 {[%clk 0:00:16]}  gxf5 {[%clk 0:01:01]} 35. Nf4 {[%clk 0:00:15]}  Bf7 {[%clk 0:00:53]} 36. e5 {[%clk 0:00:14]}  Rc5 {[%clk 0:00:33]} 37. Bxf5+ {[%clk 0:00:05]}  Kg8 {[%clk 0:00:29]} 38. e6 {[%clk 0:00:02]}  Rxf5 {[%clk 0:00:28]} 39. exf7+ {[%clk 0:00:02]}  Kxf7 {[%clk 0:00:28]} 40. a4 {[%clk 0:00:02]}  Be5 {[%clk 0:00:28]} 41. axb5 {[%clk 0:00:00]}  Rxf4 {[%clk 0:00:21]} 0-1


[Site "https://www.chess.com"]

[Event "Titled Tuesday Blitz November 14 Early 2023"]
[White "Erdogmus, Yagiz Kaan"]
[Black "Rychkov, Oleg"]
[WhiteFideId "44599790"]
[BlackFideId "4122852"]
[WhiteElo "3044"]
[BlackElo "2831"]
[Result "1-0"]
[Round "4"]
[TimeControl "180+1"]
[Date "2023.11.14"]
[WhiteClock "0:00:12"]
[BlackClock "0:00:08"]
[Board "9"]

1. e4 {[%clk 0:03:00]}  e5 {[%clk 0:02:59]} 2. Nf3 {[%clk 0:03:00]}  Nc6 {[%clk 0:02:59]} 3. Bc4 {[%clk 0:03:00]}  Nf6 {[%clk 0:02:57]} 4. Ng5 {[%clk 0:03:00]}  d5 {[%clk 0:02:56]} 5. exd5 {[%clk 0:03:01]}  Nd4 {[%clk 0:02:55]} 6. c3 {[%clk 0:02:56]}  b5 {[%clk 0:02:55]} 7. Bf1 {[%clk 0:02:56]}  Nxd5 {[%clk 0:02:54]} 8. cxd4 {[%clk 0:02:57]}  Qxg5 {[%clk 0:02:53]} 9. Bxb5+ {[%clk 0:02:56]}  Kd8 {[%clk 0:02:54]} 10. Qf3 {[%clk 0:02:55]}  Bb7 {[%clk 0:02:32]} 11. O-O {[%clk 0:02:50]}  Rb8 {[%clk 0:02:11]} 12. dxe5 {[%clk 0:02:08]}  Ne3 {[%clk 0:01:49]} 13. Qh3 {[%clk 0:02:08]}  Qxg2+ {[%clk 0:01:27]} 14. Qxg2 {[%clk 0:02:08]}  Nxg2 {[%clk 0:01:27]} 15. d4 {[%clk 0:02:01]}  Nh4 {[%clk 0:01:19]} 16. Bg5+ {[%clk 0:01:54]}  Be7 {[%clk 0:01:19]} 17. Bxh4 {[%clk 0:01:55]}  Bxh4 {[%clk 0:01:17]} 18. Nc3 {[%clk 0:01:51]}  h5 {[%clk 0:01:16]} 19. b3 {[%clk 0:01:26]}  Rh6 {[%clk 0:01:11]} 20. Bd3 {[%clk 0:01:25]}  Ke7 {[%clk 0:01:06]} 21. Be4 {[%clk 0:01:14]}  Ba6 {[%clk 0:01:01]} 22. Rfc1 {[%clk 0:01:07]}  Kf8 {[%clk 0:00:58]} 23. Nd5 {[%clk 0:00:58]}  c6 {[%clk 0:00:54]} 24. Ne3 {[%clk 0:00:54]}  Bb7 {[%clk 0:00:50]} 25. Rc2 {[%clk 0:00:47]}  Bg5 {[%clk 0:00:47]} 26. Nf5 {[%clk 0:00:46]}  Re6 {[%clk 0:00:41]} 27. Nd6 {[%clk 0:00:43]}  Ba8 {[%clk 0:00:41]} 28. Bxc6 {[%clk 0:00:41]}  Bxc6 {[%clk 0:00:40]} 29. Rxc6 {[%clk 0:00:42]}  Rg6 {[%clk 0:00:41]} 30. Kh1 {[%clk 0:00:39]}  Bf4 {[%clk 0:00:41]} 31. Rc7 {[%clk 0:00:39]}  f6 {[%clk 0:00:39]} 32. Rf7+ {[%clk 0:00:33]}  Kg8 {[%clk 0:00:39]} 33. Rxa7 {[%clk 0:00:34]}  fxe5 {[%clk 0:00:39]} 34. Nf5 {[%clk 0:00:35]}  Kh7 {[%clk 0:00:38]} 35. Rg1 {[%clk 0:00:33]}  Rf8 {[%clk 0:00:31]} 36. Rxg6 {[%clk 0:00:14]}  Kxg6 {[%clk 0:00:31]} 37. Nh4+ {[%clk 0:00:13]}  Kf6 {[%clk 0:00:30]} 38. Ra6+ {[%clk 0:00:12]}  Kg5 {[%clk 0:00:25]} 39. Ng6 {[%clk 0:00:12]}  Rc8 {[%clk 0:00:22]} 40. Nxe5 {[%clk 0:00:12]}  Kf5 {[%clk 0:00:17]} 41. Kg2 {[%clk 0:00:11]}  g5 {[%clk 0:00:16]} 42. Nd3 {[%clk 0:00:11]}  Rc2 {[%clk 0:00:14]} 43. Ra5+ {[%clk 0:00:11]}  Kg4 {[%clk 0:00:13]} 44. h3+ {[%clk 0:00:10]}  Kh4 {[%clk 0:00:14]} 45. Ne1 {[%clk 0:00:11]}  Rc3 {[%clk 0:00:10]} 46. Nf3+ {[%clk 0:00:11]}  Rxf3 {[%clk 0:00:10]} 47. Kxf3 {[%clk 0:00:12]}  Kxh3 {[%clk 0:00:11]} 48. Rf5 {[%clk 0:00:12]}  Bd2 {[%clk 0:00:10]} 49. d5 {[%clk 0:00:12]}  g4+ {[%clk 0:00:10]} 50. Ke2 {[%clk 0:00:12]}  Bb4 {[%clk 0:00:08]} 51. Rxh5+ {[%clk 0:00:12]} 1-0


[Site "https://www.chess.com"]

[Event "Titled Tuesday Blitz November 14 Early 2023"]
[White "Alexandre, Anne Shopie Elizabeth"]
[Black "Demchenko, Anton"]
[WhiteFideId "11902418"]
[BlackFideId "4160258"]
[WhiteElo "2831"]
[BlackElo "3031"]
[Result "1/2-1/2"]
[Round "4"]
[TimeControl "180+1"]
[Date "2023.11.14"]
[WhiteClock "0:00:53"]
[BlackClock "0:00:27"]
[Board "10"]

1. e4 {[%clk 0:03:00]}  e5 {[%clk 0:02:59]} 2. Nf3 {[%clk 0:03:01]}  Nc6 {[%clk 0:02:59]} 3. Bc4 {[%clk 0:03:02]}  Nf6 {[%clk 0:02:58]} 4. d3 {[%clk 0:03:01]}  h6 {[%clk 0:02:57]} 5. a4 {[%clk 0:02:57]}  a5 {[%clk 0:02:56]} 6. Kf1 {[%clk 0:02:56]}  d6 {[%clk 0:02:56]} 7. Nc3 {[%clk 0:02:50]}  Be7 {[%clk 0:02:49]} 8. h3 {[%clk 0:02:46]}  O-O {[%clk 0:02:38]} 9. g3 {[%clk 0:02:44]}  Kh8 {[%clk 0:02:35]} 10. Kg2 {[%clk 0:02:44]}  Nh7 {[%clk 0:02:36]} 11. g4 {[%clk 0:02:41]}  Ng5 {[%clk 0:02:26]} 12. Be3 {[%clk 0:02:32]}  Nb4 {[%clk 0:02:07]} 13. Nd5 {[%clk 0:02:17]}  Nxf3 {[%clk 0:02:02]} 14. Kxf3 {[%clk 0:02:17]}  Nxd5 {[%clk 0:01:54]} 15. Bxd5 {[%clk 0:02:17]}  c6 {[%clk 0:01:54]} 16. Bb3 {[%clk 0:02:17]}  d5 {[%clk 0:01:44]} 17. Kg2 {[%clk 0:02:16]}  Be6 {[%clk 0:01:45]} 18. Qf3 {[%clk 0:02:14]}  Bh4 {[%clk 0:01:35]} 19. Bc5 {[%clk 0:02:08]}  Re8 {[%clk 0:01:33]} 20. Rhe1 {[%clk 0:01:50]}  d4 {[%clk 0:01:33]} 21. Bxe6 {[%clk 0:01:24]}  fxe6 {[%clk 0:01:32]} 22. Rf1 {[%clk 0:01:24]}  b6 {[%clk 0:01:30]} 23. Ba3 {[%clk 0:01:24]}  c5 {[%clk 0:01:30]} 24. b3 {[%clk 0:01:24]}  Rf8 {[%clk 0:01:22]} 25. Qe2 {[%clk 0:01:24]}  Ra7 {[%clk 0:01:22]} 26. Bc1 {[%clk 0:01:17]}  Raf7 {[%clk 0:01:22]} 27. f3 {[%clk 0:01:17]}  Kh7 {[%clk 0:01:08]} 28. Bd2 {[%clk 0:01:17]}  g6 {[%clk 0:00:59]} 29. Rad1 {[%clk 0:01:16]}  h5 {[%clk 0:00:56]} 30. Bc1 {[%clk 0:01:14]}  Qe7 {[%clk 0:00:52]} 31. Qd2 {[%clk 0:01:13]}  g5 {[%clk 0:00:39]} 32. Qe2 {[%clk 0:01:12]}  Qf6 {[%clk 0:00:39]} 33. Bd2 {[%clk 0:01:11]}  Qg6 {[%clk 0:00:39]} 34. Ra1 {[%clk 0:01:07]}  Kg8 {[%clk 0:00:39]} 35. Rac1 {[%clk 0:01:07]}  Rh7 {[%clk 0:00:39]} 36. Rh1 {[%clk 0:01:07]}  Kf7 {[%clk 0:00:38]} 37. Rcf1 {[%clk 0:01:06]}  Ke7 {[%clk 0:00:38]} 38. Ra1 {[%clk 0:01:06]}  Kd7 {[%clk 0:00:38]} 39. Raf1 {[%clk 0:01:07]}  Rfh8 {[%clk 0:00:38]} 40. Rb1 {[%clk 0:01:00]}  Rf7 {[%clk 0:00:36]} 41. Rbf1 {[%clk 0:00:59]}  Rhf8 {[%clk 0:00:37]} 42. Bc1 {[%clk 0:00:58]}  Kd6 {[%clk 0:00:29]} 43. Bd2 {[%clk 0:00:58]}  Rf6 {[%clk 0:00:29]} 44. Bc1 {[%clk 0:00:58]}  Qe8 {[%clk 0:00:29]} 45. Bd2 {[%clk 0:00:58]}  Qf7 {[%clk 0:00:27]} 46. Qd1 {[%clk 0:00:56]}  Qg6 {[%clk 0:00:25]} 47. Qe2 {[%clk 0:00:56]}  Kc6 {[%clk 0:00:25]} 48. Qd1 {[%clk 0:00:53]}  Qf7 {[%clk 0:00:25]} 49. Qe2 {[%clk 0:00:53]}  Qg6 {[%clk 0:00:26]} 50. Qd1 {[%clk 0:00:53]}  R6f7 {[%clk 0:00:26]} 51. Qe2 {[%clk 0:00:53]}  Rf6 {[%clk 0:00:27]} 1/2-1/2


[Site "https://www.chess.com"]

[Event "Titled Tuesday Blitz November 14 Early 2023"]
[White "Martinez Alcantara, Jose Eduardo"]
[Black "CrazyAdvenTures"]
[WhiteFideId "3805662"]
[WhiteElo "3027"]
[BlackElo "2828"]
[Result "1-0"]
[Round "4"]
[TimeControl "180+1"]
[Date "2023.11.14"]
[WhiteClock "0:01:18"]
[BlackClock "0:00:37"]
[Board "11"]

1. e4 {[%clk 0:03:00]}  c5 {[%clk 0:02:59]} 2. Nf3 {[%clk 0:03:00]}  Nc6 {[%clk 0:03:00]} 3. c3 {[%clk 0:02:59]}  Nf6 {[%clk 0:02:56]} 4. Bd3 {[%clk 0:02:59]}  e5 {[%clk 0:02:47]} 5. Bc2 {[%clk 0:02:58]}  g5 {[%clk 0:02:46]} 6. h3 {[%clk 0:02:54]}  d6 {[%clk 0:02:35]} 7. d3 {[%clk 0:02:54]}  h6 {[%clk 0:02:34]} 8. Nbd2 {[%clk 0:02:52]}  Bg7 {[%clk 0:02:24]} 9. Nf1 {[%clk 0:02:51]}  g4 {[%clk 0:02:14]} 10. hxg4 {[%clk 0:02:51]}  Bxg4 {[%clk 0:02:15]} 11. Ne3 {[%clk 0:02:51]}  Be6 {[%clk 0:02:11]} 12. Nh4 {[%clk 0:02:50]}  Ne7 {[%clk 0:02:11]} 13. Qf3 {[%clk 0:02:48]}  Qd7 {[%clk 0:02:02]} 14. a3 {[%clk 0:02:32]}  O-O-O {[%clk 0:01:53]} 15. b4 {[%clk 0:02:32]}  d5 {[%clk 0:01:49]} 16. bxc5 {[%clk 0:02:14]}  dxe4 {[%clk 0:01:24]} 17. dxe4 {[%clk 0:02:14]}  Kb8 {[%clk 0:01:22]} 18. O-O {[%clk 0:02:05]}  Rc8 {[%clk 0:01:18]} 19. Rd1 {[%clk 0:02:05]}  Qc6 {[%clk 0:01:08]} 20. a4 {[%clk 0:02:05]}  Ng6 {[%clk 0:00:56]} 21. Nhf5 {[%clk 0:01:41]}  Rhg8 {[%clk 0:00:56]} 22. Nxg7 {[%clk 0:01:38]}  Nf4 {[%clk 0:00:53]} 23. Nef5 {[%clk 0:01:23]}  Bxf5 {[%clk 0:00:48]} 24. Bxf4 {[%clk 0:01:18]}  exf4 {[%clk 0:00:37]} 1-0


[Site "https://www.chess.com"]